bitfinex/quotes_ETHUSD_20230701
["timestamp","ask_amount","ask_price","bid_price","bid_amount"]
[1688221649638,3.72737484,1925.4,1925.1,12.98631]
[1688221667253,2.68752184,1925.4,1925.1,12.98631]
[1688221674586,7.88127184,1925.4,1925.1,12.98631]
[1688221674790,13.07502184,1925.4,1925.1,10.38905]
[1688221674992,14.91061692,1925.4,1925.1,10.38905]
[1688221675565,14.91061692,1925.4,1925.1,5.19452]
[1688221675770,14.91061692,1925.4,1925.1,10.38905]
[1688221676295,1.039799,1925.5,1925.1,13.92731]
[1688221676594,3.72732084,1925.5,1925.1,13.92731]
[1688221680002,0.00258113,1925.6,1925.3,12.98497]
[1688221680296,3.41707507,1925.7,1925.3,12.98497]
[1688221680297,0.41707507,1925.7,1925.3,12.98497]
[1688221680497,2.68752184,1925.7,1925.3,12.98497]
[1688221680798,2.68752184,1925.7,1925.3,15.691677]
[1688221681095,3.0,1925.8,1925.3,15.691677]
[1688221681297,1.039645,1925.8,1925.3,15.691677]
[1688221681596,3.40825941,1925.9,1925.3,14.745677]
[1688221681796,3.40825941,1925.9,1925.5,0.94]
[1688221681797,3.09578125,1925.9,1925.5,0.94]
[1688221681997,3.0,1925.8,1925.6,10.38626]
[1688221689074,1.6684,1926.0,1925.6,15.321139]
[1688221689278,0.42041423,1926.1,1925.6,15.321139]
[1688221689497,4.38540297,1926.1,1925.6,19.018739]
[1688221690316,5.42487697,1926.1,1925.6,19.018739]
[1688221690511,10.61671697,1926.1,1925.6,18.072739]
[1688221690808,15.80855697,1926.1,1925.6,18.072739]
[1688221694206,10.61671697,1926.1,1925.6,18.072739]
[1688221695207,10.61671697,1926.1,1925.7,1.18379563]
[1688221695392,10.61671697,1926.1,1925.8,5.19259]
[1688221696092,5.42487697,1926.1,1925.8,10.38523]
[1688221697515,10.61672697,1926.1,1925.8,5.19259]
[1688221697719,5.42487697,1926.1,1925.8,5.19259]
[1688221697918,10.61675697,1926.1,1925.8,5.19259]
[1688221698122,12.73383683,1926.1,1925.8,5.19259]
[1688221701227,12.73383683,1926.1,1925.8,10.38523]
[1688221701430,12.73383683,1926.1,1925.8,5.19259]
[1688221701431,7.54195683,1926.1,1925.8,5.19259]
[1688221701929,5.42229584,1926.1,1925.8,10.38523]
[1688221705423,10.61415584,1926.1,1925.8,5.19259]
[1688221706020,5.42229584,1926.1,1925.8,5.19259]
[1688221708404,10.61413584,1926.1,1925.8,5.19259]
[1688221711505,12.73094559,1926.1,1925.8,5.19259]
[1688221719570,12.73094559,1926.1,1925.8,10.38523]
[1688221720225,10.61413584,1926.1,1925.8,10.38523]
[1688221720427,10.61413584,1926.1,1925.8,5.19259]
[1688221725529,15.80597584,1926.1,1925.8,5.19259]
[1688221728337,10.61413584,1926.1,1925.8,5.19259]
[1688221731581,15.80596584,1926.1,1925.8,5.19259]
[1688221732482,10.61412584,1926.1,1925.8,5.19259]
[1688221734784,3.16752184,1926.0,1925.7,10.38547]
[1688221735065,3.16752184,1926.0,1925.7,5.19267]
[1688221735278,2.68752184,1926.0,1925.7,10.38558]
[1688221736075,1.039474,1926.1,1925.7,12.98203]
[1688221736279,6.72699584,1926.1,1925.7,12.98203]
[1688221736638,11.91884584,1926.1,1925.7,12.98203]
[1688221739061,11.91884584,1926.1,1925.7,10.38558]
[1688221739253,17.11069584,1926.1,1925.7,10.38558]
[1688221740269,2.68752184,1926.0,1925.7,10.38558]
[1688221740569,7.87969184,1926.0,1925.7,5.19267]
[1688221741730,7.87969184,1926.0,1925.7,10.38558]
[1688221742075,2.68752184,1926.0,1925.7,10.38558]
[1688221742860,2.68752184,1926.0,1925.7,12.98203]
[1688221743065,2.68752184,1926.0,1925.7,14.48796736]
[1688221751279,2.68752184,1926.0,1925.7,12.98203]
[1688221760198,4.039474,1926.1,1925.7,12.98203]
[1688221760400,6.72699584,1926.1,1925.7,12.98203]
[1688221761195,11.91884584,1926.1,1925.7,12.98203]
[1688221761702,6.72699584,1926.1,1925.7,12.98203]
[1688221762005,4.039474,1926.1,1925.7,12.98203]
[1688221762168,4.039474,1926.1,1925.7,14.48796736]
[1688221763798,9.231324,1926.1,1925.7,14.48796736]
[1688221764405,9.231324,1926.1,1925.7,11.89151736]
[1688221765380,9.231324,1926.1,1925.7,10.38558]
[1688221767875,4.039474,1926.1,1925.7,12.98203]
[1688221770410,3.0,1926.1,1925.7,12.98203]
[1688221770775,11.39691462,1926.2,1925.7,12.98203]
[1688221770972,11.39691462,1926.2,1925.7,14.50033]
[1688221770973,14.08443646,1926.2,1925.7,14.50033]
[1688221771174,14.08443646,1926.2,1925.7,16.25269736]
[1688221771616,19.27620646,1926.2,1925.7,16.25269736]
[1688221772303,14.08443646,1926.2,1925.7,16.25269736]
[1688221774234,19.27599646,1926.2,1925.7,16.25269736]
[1688221774377,19.27583646,1926.2,1925.7,16.25269736]
[1688221775281,14.08427646,1926.2,1925.7,16.25269736]
[1688221775498,14.08427646,1926.2,1925.8,1.62526974]
[1688221775709,14.08427646,1926.2,1925.8,6.81774974]
[1688221779507,19.27583646,1926.2,1925.8,6.81774974]
[1688221779810,19.27583646,1926.2,1925.8,5.19248]
[1688221781891,14.08427646,1926.2,1925.8,5.19248]
[1688221783714,14.08427646,1926.2,1925.8,10.38512]
[1688221785427,19.27583646,1926.2,1925.8,10.38512]
[1688221786522,14.08427646,1926.2,1925.8,10.38512]
[1688221789230,19.27583646,1926.2,1925.8,10.38512]
[1688221789816,19.27583646,1926.2,1925.8,5.19248]
[1688221790558,14.08427646,1926.2,1925.8,5.19248]
[1688221791128,2.68752184,1926.1,1925.7,5.19278]
[1688221791295,13.07145184,1926.1,1925.7,10.38559]
[1688221795553,13.07145184,1926.1,1925.5,5.19336]
[1688221795554,0.941,1925.9,1925.5,5.19336]
[1688221795861,2.68752184,1925.8,1925.5,10.38681]
[1688221799230,2.68752184,1925.8,1925.5,12.98353]
[1688221804779,3.47551102,1925.8,1925.4,0.01404508]
[1688221804945,3.47551102,1925.8,1925.1,2.59725]
[1688221804946,14.01394184,1925.8,1925.1,2.59725]
[1688221805280,5.67308,1925.7,1925.3,10.38789]
[1688221805589,5.67308,1925.7,1925.3,12.98488]
[1688221805590,2.68752184,1925.6,1925.3,12.98488]
[1688221805755,7.88072184,1925.6,1925.3,10.38789]
[1688221805953,4.30712802,1925.6,1925.3,10.38789]
[1688221806267,1.6963,1925.7,1925.3,12.98488]
[1688221806467,4.38382184,1925.7,1925.3,12.98488]
[1688221806981,2.68752184,1925.6,1925.3,5.19395]
[1688221807849,2.68752184,1925.6,1925.3,10.38794]
[1688221810221,3.0,1925.8,1925.3,12.98493]
[1688221810431,6.231063,1926.2,1925.4,1.298493]
[1688221810599,6.231063,1926.2,1925.6,15.57921]
[1688221810600,2.68752184,1926.1,1925.6,15.57921]
[1688221811094,2.650123,1926.2,1925.8,0.938]
[1688221811302,3.72694484,1926.2,1925.9,10.38464]
[1688221811496,2.68752184,1926.2,1925.9,12.98082]
[1688221811693,2.68752184,1926.2,1925.9,14.632327]
[1688221814033,7.87913184,1926.2,1925.9,12.98082]
[1688221814543,7.87913184,1926.2,1925.9,10.38464]
[1688221815416,2.68752184,1926.1,1925.5,1.35959692]
[1688221815735,13.46322113,1926.0,1925.5,5.19343]
[1688221815937,13.07251184,1925.9,1925.5,10.38688]
[1688221816137,7.87991184,1925.9,1925.5,12.9836]
[1688221817209,7.87991184,1925.9,1925.5,5.19343]
[1688221817210,14.01830184,1925.9,1925.5,5.19343]
[1688221817444,16.61448184,1925.9,1925.4,10.40129508]
[1688221817617,1.66144818,1925.8,1925.4,5.20760508]
[1688221817812,2.68752184,1925.7,1925.4,10.40132508]
[1688221818138,7.88048184,1925.7,1925.4,10.40132508]
[1688221820339,7.88048184,1925.7,1925.4,12.99818508]
[1688221820540,2.68752184,1925.7,1925.4,12.99818508]
[1688221827962,1.039662,1925.8,1925.4,14.55770159]
[1688221828179,3.0,1926.2,1925.6,12.98295]
[1688221828475,5.68752184,1926.1,1925.6,12.98295]
[1688221828676,13.38283,1926.3,1925.6,12.98295]
[1688221828881,2.68752184,1926.2,1925.7,1.298295]
[1688221829088,3.0,1926.1,1925.8,10.38489]
[1688221829848,8.19185,1926.1,1925.8,10.38489]
[1688221830586,8.19185,1926.1,1925.8,5.19243]
[1688221831448,3.0,1926.1,1925.8,5.19243]
[1688221831646,8.19183,1926.1,1925.8,5.19243]
[1688221831887,8.91852384,1926.2,1925.8,14.4093775]
[1688221831888,1.039412,1926.2,1925.8,14.4093775]
[1688221832090,0.41745458,1926.3,1925.8,14.4093775]
[1688221832091,5.60879458,1926.3,1925.8,14.4093775]
[1688221832292,8.29631642,1926.3,1925.8,14.4093775]
[1688221832539,13.48765642,1926.3,1925.9,1.44093775]
[1688221832827,13.48765642,1926.3,1926.0,5.1921]
[1688221833194,14.52702242,1926.3,1926.0,5.1921]
[1688221833822,14.52702242,1926.3,1925.9,5.19231]
[1688221833823,4.14434242,1926.3,1925.9,10.38462]
[1688221834025,9.33579242,1926.3,1925.9,10.38462]
[1688221834222,9.33579242,1926.3,1925.9,11.82691697]
[1688221834409,9.33183573,1926.3,1925.9,11.82691697]
[1688221834922,4.14038573,1926.3,1925.9,11.82691697]
[1688221836618,9.33176573,1926.3,1925.9,11.82691697]
[1688221836828,14.52314573,1926.3,1925.9,10.38462]
[1688221838495,17.11878573,1926.3,1925.9,10.38462]
[1688221838830,14.52314573,1926.3,1925.9,10.38462]
[1688221839453,9.33176573,1926.3,1925.9,10.38462]
[1688221843775,4.14038573,1926.3,1925.9,10.38462]
[1688221844068,4.14038573,1926.3,1926.0,1.038462]
[1688221844243,4.14038573,1926.3,1926.0,5.19205]
[1688221848075,4.14038573,1926.3,1926.0,10.38415]
[1688221848456,3.10101973,1926.3,1926.0,10.38415]
[1688221850362,3.10101973,1926.3,1926.0,12.9802]
[1688221852379,0.41349789,1926.3,1926.0,12.9802]
[1688221852582,0.12671145,1926.7,1926.1,1.31205998]
[1688221852786,0.40624926,1926.5,1926.2,12.97839]
[1688221852955,4.44803329,1926.7,1926.2,12.97839]
[1688221853156,5.48720129,1926.7,1926.2,12.97839]
[1688221853488,5.48720129,1926.7,1926.2,14.56892925]
[1688221853489,3.0,1926.6,1926.2,14.56892925]
[1688221853662,3.0,1926.6,1926.4,5.19102]
[1688221853868,3.0,1926.6,1926.4,10.38204]
[1688221854267,3.85340129,1926.7,1926.5,0.01403706]
[1688221854478,2.81423329,1926.7,1926.6,5.19049]
[1688221855285,2.68752184,1926.7,1926.6,5.19049]
[1688221856360,2.68752184,1926.7,1926.6,10.38098]
[1688221856762,1.03911,1926.8,1926.6,14.27525671]
[1688221857010,0.42319029,1926.9,1926.6,14.27525671]
[1688221857497,0.13088271,1926.9,1926.6,14.27525671]
[1688221860201,2.81840455,1926.9,1926.6,6.48952671]
[1688221860414,2.81840455,1926.9,1926.6,10.38098]
[1688221860415,2.68752184,1926.8,1926.6,10.38098]
[1688221861684,2.68752184,1926.8,1926.6,12.97622]
[1688221867601,0.13088271,1926.9,1926.6,12.97622]
[1688221870434,2.68752184,1926.8,1926.6,5.19049]
[1688221871407,2.68752184,1926.8,1926.6,10.38098]
[1688221872040,2.68752184,1926.8,1926.6,5.19049]
[1688221872243,13.8682913,1926.8,1926.5,10.3812]
[1688221872415,13.8682913,1926.8,1926.5,5.19056]
[1688221872743,13.8682913,1926.8,1926.5,5.19074]
[1688221873141,8.6783113,1926.8,1926.5,12.97688]
[1688221873311,7.87750184,1926.8,1926.5,12.97688]
[1688221873945,2.68752184,1926.8,1926.5,12.97688]
[1688221876741,0.13088271,1926.9,1926.5,12.97688]
[1688221876946,2.81840455,1926.9,1926.5,12.97688]
[1688221885538,8.00808455,1926.9,1926.5,12.97688]
[1688221885738,8.00808455,1926.9,1926.6,1.297688]
[1688221885943,8.00808455,1926.9,1926.7,10.38044]
[1688221886857,8.00808455,1926.9,1926.7,5.19022]
[1688221887153,13.19776455,1926.9,1926.5,7.30018]
[1688221887354,15.79260455,1926.9,1926.5,12.49078]
[1688221887563,15.79260455,1926.9,1926.5,14.00081178]
[1688221888131,15.79260455,1926.9,1926.5,16.59619178]
[1688221888132,13.19776455,1926.9,1926.5,16.59619178]
[1688221888537,13.06688184,1926.9,1926.5,16.59619178]
[1688221898538,2.68752184,1926.9,1926.5,17.53419178]
[1688221898847,2.68752184,1926.9,1926.7,5.19022]
[1688221901768,2.68752184,1926.9,1926.7,10.38044]
[1688221902269,2.68752184,1926.9,1926.7,12.97555]
[1688221906593,0.41032274,1927.0,1926.7,13.91655]
[1688221906807,0.12742253,1927.1,1926.7,13.91655]
[1688221906808,0.12742253,1927.1,1926.9,12.9742]
[1688221913437,2.81494437,1927.1,1926.9,5.18968]
[1688221914016,2.81494437,1927.1,1926.9,10.37936]
[1688221916213,2.81494437,1927.1,1926.9,12.9742]
[1688221916828,2.8175255,1927.1,1926.9,12.9742]
[1688221918534,2.8175255,1927.1,1926.9,5.18968]
[1688221918693,2.8175255,1927.1,1926.9,10.37936]
[1688221919927,2.8175255,1927.1,1926.9,12.9742]
[1688221925317,3.23295473,1927.1,1926.9,12.9742]
[1688221925721,2.68752184,1927.0,1926.9,12.9742]
[1688221926033,7.87693184,1927.0,1926.8,5.18983]
[1688221926232,7.87693184,1927.0,1926.8,10.37978]
[1688221926433,7.87693184,1927.0,1926.8,5.18983]
[1688221926645,7.87693184,1927.0,1926.8,10.37978]
[1688221926937,2.68752184,1927.0,1926.8,10.37978]
[1688221927131,2.68752184,1927.0,1926.8,12.97475]
[1688221927533,2.68752184,1927.0,1926.8,10.37978]
[1688221927905,7.87695184,1927.0,1926.8,10.37978]
[1688221929536,17.21766566,1927.0,1926.5,2.1096]
[1688221929701,17.21766566,1927.0,1926.5,5.19073]
[1688221929702,11.326,1926.8,1926.5,5.19073]
[1688221929903,2.68752184,1926.7,1926.5,10.38149]
[1688221930107,2.68752184,1926.7,1926.5,12.97687]
[1688221930325,2.68752184,1926.7,1926.5,10.38149]
[1688221930720,2.68752184,1926.7,1926.5,12.97687]
[1688221931714,9.61282,1926.9,1926.5,14.274557]
[1688221931715,3.0,1926.9,1926.5,14.274557]
[1688221931915,5.68752184,1926.9,1926.5,14.274557]
[1688221933557,10.87721184,1926.9,1926.5,14.274557]
[1688221934345,16.06690184,1926.9,1926.5,14.274557]
[1688221938257,10.87721184,1926.9,1926.5,14.274557]
[1688221938461,10.87721184,1926.9,1926.7,5.19022]
[1688221938668,5.68752184,1926.9,1926.7,5.19022]
[1688221939162,6.1017796,1926.9,1926.7,5.19022]
[1688221940645,11.2914696,1926.9,1926.7,5.19022]
[1688221941499,11.2914696,1926.9,1926.7,10.38044]
[1688221941500,3.41425776,1926.9,1926.7,10.38044]
[1688221942754,0.41425776,1926.9,1926.7,14.273116]
[1688221942950,13.50864366,1927.1,1926.7,14.273116]
[1688221942951,3.0,1927.0,1926.7,14.273116]
[1688221943155,5.68752184,1927.0,1926.7,14.273116]
[1688221944983,10.87695184,1927.0,1926.7,14.273116]
[1688221945291,10.87695184,1927.0,1926.7,12.97555]
[1688221950998,3.0,1927.0,1926.7,12.97555]
[1688221952970,8.18944,1927.0,1926.7,12.97555]
[1688221953176,16.06640184,1927.0,1926.7,5.19022]
[1688221954461,16.06640184,1927.0,1926.7,10.38044]
[1688221954667,10.87696184,1927.0,1926.7,10.38044]
[1688221956899,10.87696184,1927.0,1926.7,12.97555]
[1688221959479,5.68752184,1927.0,1926.7,14.485595]
[1688221959886,10.87693184,1927.0,1926.7,14.485595]
[1688221960512,10.87693184,1927.0,1926.7,12.97555]
[1688221964176,16.06634184,1927.0,1926.7,12.97555]
[1688221965591,10.87693184,1927.0,1926.7,12.97555]
[1688221974645,16.06634184,1927.0,1926.7,10.38044]
[1688221975525,16.06634184,1927.0,1926.6,2.1249]
[1688221975727,4.29415602,1926.9,1926.6,2.1249]
[1688221975933,4.29415602,1926.9,1926.6,7.31534]
[1688221975934,13.06726184,1926.9,1926.6,7.31534]
[1688221976230,13.06726184,1926.9,1926.5,6.80760706]
[1688221976231,13.06726184,1926.9,1926.5,10.39524706]
[1688221977012,15.66210184,1926.9,1926.4,0.946]
[1688221977196,12.97597,1926.7,1926.3,5.19116]
[1688221977400,3.98511884,1926.6,1926.2,5.19138]
[1688221977714,5.19077,1926.5,1926.1,10.38339]
[1688221977914,13.06906184,1926.5,1926.2,5.19156]
[1688221978128,2.68752184,1926.4,1926.1,5.19167]
[1688221978320,5.19129,1926.3,1926.1,5.19167]
[1688221978525,7.87867184,1926.4,1926.1,10.3835]
[1688221978936,13.06980184,1926.4,1926.1,10.3835]
[1688221979244,13.06978184,1926.4,1926.1,10.3835]
[1688221979454,2.68752184,1926.4,1926.1,12.97941]
[1688221983162,6.89629113,1926.6,1926.1,14.85955498]
[1688221983456,2.68752184,1926.5,1926.1,14.85955498]
[1688221985758,1.45829561,1926.6,1926.1,14.85955498]
[1688221986072,11.29721445,1926.6,1926.1,14.85955498]
[1688221986286,8.29721445,1926.6,1926.1,14.85955498]
[1688221986429,13.48782445,1926.6,1926.3,10.38248]
[1688221987671,8.29721445,1926.6,1926.3,10.38248]
[1688221992404,13.48782445,1926.6,1926.3,10.38248]
[1688221992767,13.48524332,1926.6,1926.3,10.38248]
[1688221994365,13.48524332,1926.6,1926.3,5.19124]
[1688221994577,13.48524332,1926.6,1926.2,5.19141]
[1688221994578,15.49719635,1926.6,1926.2,5.19141]
[1688221994773,19.71383635,1926.6,1926.2,5.19141]
[1688221995074,17.70188332,1926.6,1926.2,5.19141]
[1688221996793,17.70188332,1926.6,1926.1,13.91868498]
[1688221997604,17.70188332,1926.6,1926.1,8.72701498]
[1688221997797,2.68752184,1926.5,1926.1,5.20570998]
[1688221998002,13.06928184,1926.5,1926.1,10.39753998]
[1688221999005,7.22853148,1926.6,1926.1,12.99344998]
[1688221999208,15.10679332,1926.6,1926.1,13.93644998]
[1688221999415,15.10679332,1926.6,1926.1,15.56034998]
[1688221999773,15.10679332,1926.6,1926.2,1.556035]
[1688221999966,15.10679332,1926.6,1926.1,12.02143998]
[1688221999967,2.68752184,1926.5,1926.1,12.02143998]
[1688222000170,2.68752184,1926.5,1926.1,10.39753998]
[1688222000171,5.19105,1926.4,1926.1,10.39753998]
[1688222005778,5.19105,1926.4,1926.1,12.99344998]
[1688222005979,7.87836184,1926.5,1926.1,12.99344998]
[1688222005980,13.06928184,1926.5,1926.1,12.99344998]
[1688222006222,7.87836184,1926.5,1926.1,12.99344998]
[1688222006580,7.87836184,1926.5,1926.1,15.02123598]
[1688222007894,13.06921184,1926.5,1926.1,15.02123598]
[1688222009030,13.06921184,1926.5,1926.1,15.96723598]
[1688222009198,7.22852148,1926.6,1926.1,15.96723598]
[1688222009530,7.22852148,1926.6,1926.2,0.946]
[1688222009730,7.22852148,1926.6,1926.3,10.38248]
[1688222020558,2.03790148,1926.6,1926.3,10.38248]
[1688222020733,0.41650148,1926.6,1926.3,10.38248]
[1688222021147,5.19052,1926.6,1926.3,10.38248]
[1688222025650,10.38104,1926.6,1926.3,10.38248]
[1688222027930,17.57876331,1926.6,1926.1,0.95403998]
[1688222028132,17.57876331,1926.6,1926.1,0.01403998]
[1688222028133,2.68752184,1926.5,1926.1,0.01403998]
[1688222028438,12.9777,1926.4,1925.7,7.09059683]
[1688222028634,12.9777,1926.4,1925.8,0.90229026]
[1688222028635,12.97925,1926.2,1925.8,0.90229026]
[1688222028870,12.97925,1926.2,1925.7,7.30961]
[1688222029177,17.29927184,1926.2,1925.7,12.50252]
[1688222029943,2.68752184,1926.1,1925.7,5.19281]
[1688222030164,2.68752184,1926.1,1925.6,6.13903]
[1688222030165,10.38432,1926.0,1925.6,6.13903]
[1688222030471,13.07184184,1926.0,1925.6,10.38632]
[1688222032478,13.07184184,1926.0,1925.3,41.36377]
[1688222032479,5.68752184,1925.9,1925.3,41.36377]
[1688222032650,10.38572,1925.8,1925.1,5.19434]
[1688222032972,12.9835,1925.6,1925.1,10.79731746]
[1688222033171,12.9835,1925.6,1925.1,10.65660971]
[1688222033172,5.19377,1925.4,1925.1,10.65660971]
[1688222033330,10.38754,1925.4,1925.1,5.46207971]
[1688222033530,7.88131184,1925.4,1925.1,0.26773971]
[1688222033848,7.88131184,1925.4,1925.1,5.46225971]
[1688222034242,2.68752184,1925.4,1925.1,10.38905]
[1688222034464,7.88137184,1925.4,1925.1,10.38905]
[1688222034653,7.88137184,1925.4,1925.1,10.65678971]
[1688222035045,2.68752184,1925.4,1925.2,0.26773971]
[1688222035241,7.88132184,1925.4,1925.2,5.46189971]
[1688222035580,2.68752184,1925.4,1925.2,10.65615971]
[1688222036037,2.68752184,1925.4,1925.2,5.46189971]
[1688222036771,7.88129184,1925.4,1925.2,5.46189971]
[1688222037801,2.68752184,1925.4,1925.2,10.65615971]
[1688222039475,5.19311,1925.7,1925.2,13.88967103]
[1688222039673,2.68752184,1925.6,1925.2,13.88967103]
[1688222045670,7.88075184,1925.6,1925.2,6.09828103]
[1688222045971,13.07656297,1925.6,1925.2,5.46189971]
[1688222047546,13.07656297,1925.6,1925.2,10.65615971]
[1688222049269,7.88333297,1925.6,1925.2,10.65615971]
[1688222051669,2.69010297,1925.6,1925.2,10.65615971]
[1688222056479,7.88328297,1925.6,1925.2,10.65615971]
[1688222057165,14.48806867,1925.6,1925.2,10.65615971]
[1688222057404,14.48806867,1925.6,1925.1,10.40275727]
[1688222057563,16.22726867,1925.6,1925.1,10.40275727]
[1688222059912,16.22726867,1925.6,1925.1,13.00001727]
[1688222062270,16.21348627,1925.6,1925.1,13.00001727]
[1688222064188,16.21348627,1925.6,1925.1,5.20839727]
[1688222064393,1.62134863,1925.5,1925.1,5.20839727]
[1688222064699,7.88127184,1925.4,1925.1,10.40292727]
[1688222066165,7.88127184,1925.4,1925.1,5.20839727]
[1688222066370,2.68752184,1925.4,1925.1,0.01404727]
[1688222066715,2.68752184,1925.4,1925.1,5.20857727]
[1688222067014,4.15712189,1925.4,1925.1,0.01404727]
[1688222067566,5.84252189,1925.4,1925.1,0.01404727]
[1688222069804,4.37292184,1925.4,1925.1,5.20854727]
[1688222069998,4.37292184,1925.4,1925.1,10.40307727]
[1688222071509,9.56665184,1925.4,1925.1,10.40307727]
[1688222072934,9.56665184,1925.4,1925.1,5.20854727]
[1688222073416,14.76038184,1925.4,1925.0,10.38923]
[1688222073620,14.76038184,1925.4,1925.1,5.19452]
[1688222073819,16.65822889,1925.4,1925.1,5.19452]
[1688222075725,11.46449889,1925.4,1925.1,5.19452]
[1688222077115,11.46449889,1925.4,1925.1,5.09452]
[1688222079981,11.41449889,1925.4,1925.1,5.09452]
[1688222080919,6.22076889,1925.4,1925.1,10.28905]
[1688222081094,0.42222623,1925.5,1925.1,10.28905]
[1688222081411,3.10974807,1925.5,1925.1,12.88631]
[1688222081610,3.10974807,1925.5,1925.1,13.83231]
[1688222082219,3.10974807,1925.5,1925.2,12.712541]
[1688222082220,2.68752184,1925.5,1925.2,12.712541]
[1688222082823,3.0,1925.6,1925.2,12.712541]
[1688222082981,4.039724,1925.7,1925.2,12.712541]
[1688222083188,17.11322584,1925.7,1925.2,9.135981]
[1688222083392,17.11322584,1925.7,1925.2,6.81175]
[1688222083902,19.24210109,1925.7,1925.2,6.81175]
[1688222085192,21.83855109,1925.7,1925.2,6.81175]
[1688222085728,21.84113222,1925.7,1925.2,6.81175]
[1688222085905,24.46651744,1925.7,1925.2,1.6177]
[1688222093911,24.46651744,1925.7,1925.2,6.81195]
[1688222094736,24.46651744,1925.7,1925.2,1.6177]
[1688222095554,2.68752184,1925.6,1925.1,2.95404727]
[1688222095754,5.19357,1925.5,1925.1,2.00804727]
[1688222095937,2.68752184,1925.4,1925.1,1.994]
[1688222096145,2.68752184,1925.4,1924.9,2.1434]
[1688222096146,13.07521184,1925.4,1924.9,2.1434]
[1688222096446,13.07521184,1925.4,1924.9,7.33847]
[1688222096606,14.83750024,1925.4,1924.9,7.33847]
[1688222097045,14.83750024,1925.4,1924.9,12.53354]
[1688222097253,14.83750024,1925.4,1925.0,0.90265537]
[1688222097616,14.83750024,1925.4,1925.1,5.19451]
[1688222097813,2.68752184,1925.4,1925.1,10.38904]
[1688222098247,12.0669,1925.6,1925.1,10.38904]
[1688222098449,2.68752184,1925.5,1925.1,10.38904]
[1688222098915,4.45899925,1925.7,1925.2,0.946]
[1688222099114,6.72724584,1925.7,1925.3,6.13996]
[1688222099320,2.68752184,1925.7,1925.4,0.613996]
[1688222099652,2.68752184,1925.7,1925.5,5.19345]
[1688222099858,2.68752184,1925.7,1925.4,11.001226]
[1688222100415,2.68752184,1925.7,1925.4,5.807606]
[1688222102545,2.68752184,1925.7,1925.4,6.753606]
[1688222104818,1.45471022,1925.8,1925.4,6.753606]
[1688222104819,1.039643,1925.8,1925.5,1.6183606]
[1688222105017,3.00258113,1925.9,1925.5,6.8117406]
[1688222105248,5.69010297,1925.9,1925.5,6.8117406]
[1688222105423,6.72968497,1925.9,1925.5,6.8117406]
[1688222105623,11.92206497,1925.9,1925.6,0.68117406]
[1688222105827,11.92206497,1925.9,1925.5,6.13638]
[1688222105828,6.72968497,1925.9,1925.5,6.13638]
[1688222106264,17.11456497,1925.9,1925.5,6.13638]
[1688222106762,19.71074497,1925.9,1925.5,6.13638]
[1688222106971,19.71074497,1925.9,1925.5,0.943]
[1688222107175,20.12035752,1925.9,1925.5,0.943]
[1688222107389,20.12035752,1925.9,1925.5,6.13643]
[1688222107552,17.52417752,1925.9,1925.5,6.0296426]
[1688222111067,4.44919455,1925.9,1925.5,14.7658126]
[1688222111251,3.40961255,1925.9,1925.6,6.13596]
[1688222111451,0.40961255,1925.9,1925.6,11.32914]
[1688222111668,1.6034,1926.0,1925.6,11.32914]
[1688222111887,4.29092184,1926.0,1925.7,6.325804]
[1688222112046,3.0,1925.9,1925.7,6.325804]
[1688222113065,3.0,1925.9,1925.7,1.132914]
[1688222113241,7.31971426,1926.3,1925.7,9.862184]
[1688222113439,0.946,1926.5,1925.9,10.38449]
[1688222113440,5.19114,1926.4,1925.9,10.38449]
[1688222113633,7.87866184,1926.4,1926.0,6.13508]
[1688222114680,8.91799584,1926.4,1926.0,6.13508]
[1688222114844,14.10910584,1926.4,1926.0,6.13508]
[1688222115039,16.70461584,1926.4,1926.0,0.943]
[1688222115241,18.53913742,1926.4,1926.0,0.943]
[1688222115475,5.19156,1926.2,1926.0,0.943]
[1688222115639,5.19156,1926.2,1925.9,9.66849]
[1688222115844,5.19156,1926.2,1925.9,14.86086]
[1688222116099,5.19156,1926.2,1925.9,9.66849]
[1688222116298,5.19156,1926.2,1925.9,10.00553784]
[1688222116588,13.38293,1926.3,1925.9,10.00553784]
[1688222116773,1.46267606,1926.4,1926.1,0.941]
[1688222117092,6.93383113,1926.6,1926.2,10.38292]
[1688222117294,6.93383113,1926.6,1926.2,13.762101]
[1688222117588,5.19102,1926.4,1926.2,1.9872]
[1688222117751,10.38204,1926.4,1926.0,12.95793071]
[1688222119691,10.38204,1926.4,1926.0,7.76594071]
[1688222119905,10.38204,1926.4,1926.0,6.15194071]
[1688222120467,10.38204,1926.4,1926.0,11.34404071]
[1688222121194,2.68752184,1926.3,1926.0,0.01404071]
[1688222121396,5.19156,1926.2,1926.0,0.01404071]
[1688222121749,5.19156,1926.2,1926.0,5.20610071]
[1688222122924,5.19156,1926.2,1926.0,10.39820071]
[1688222124077,13.07038184,1926.3,1926.0,10.39820071]
[1688222124365,1.6702,1926.4,1926.0,12.99425071]
[1688222124677,4.35772184,1926.4,1926.0,14.75201378]
[1688222125277,8.61229045,1926.6,1926.0,14.75201378]
[1688222125471,7.83303229,1926.6,1926.0,15.69301378]
[1688222125654,3.42171045,1926.6,1926.0,15.69301378]
[1688222125894,0.42171045,1926.6,1926.1,1.56930138]
[1688222126070,0.42171045,1926.6,1926.2,5.19143]
[1688222126271,3.0,1926.6,1926.2,5.19143]
[1688222126604,3.0,1926.6,1926.1,11.95263138]
[1688222126771,8.19052,1926.6,1926.1,11.95263138]
[1688222126957,8.19052,1926.6,1926.2,6.38676314]
[1688222130914,13.38104,1926.6,1926.2,6.38676314]
[1688222132301,13.38104,1926.6,1926.2,1.19526314]
[1688222132592,3.0,1926.6,1926.2,6.38682314]
[1688222133597,8.19051,1926.6,1926.2,6.38682314]
[1688222133988,8.19051,1926.6,1926.2,11.57838314]
[1688222134439,3.0,1926.6,1926.2,11.57533075]
[1688222134813,8.19049,1926.6,1926.2,11.57533075]
[1688222135547,8.19049,1926.6,1926.2,10.38312]
[1688222136761,8.19049,1926.6,1926.2,5.19156]
[1688222139053,13.38098,1926.6,1926.2,5.19156]
[1688222140741,13.38098,1926.6,1926.1,11.95271138]
[1688222140942,13.38098,1926.6,1926.0,7.76928071]
[1688222140943,16.06850184,1926.6,1926.0,7.76928071]
[1688222141243,16.06850184,1926.6,1925.5,5.19325]